Workbook

Sheet All Products
EE1: CALCULATE BASE AMOUNT | EF1: =IF(EN133>0,EN133,"") ->  | EJ1: The Bayer Season PAK is back, offering you the performance of complete insect and disease control you need to manage your golf course. Bayer Season PAK customers automatically receive a minimum 8% rebate on all purchases during the program (Includes October bonus). | EQ1: NOW Solutions Purchase | ES1: Oct Purchase | EU1: Points or Credit
EE3: ADJUSTED BASE AMOUNT | EF3: =IF(EL75=3,EF1,IF(SUM(AW90,AK129)>0,SUM(AW90,AK129),"")) ->  | EQ3: =IF(EQ4>0,TRUE,FALSE) -> FALSE | ES3: FALSE | EU3: 1
EQ4: =IF(OR(AND(EL75=1,DP186=SUM(DP185:DP195)),AND(EL75=4,SUM(DP191,DP186)=SUM(DP185:DP195)),AND(EL75=2,SUM(DP191,DP192,DP185)=SUM(DP185:DP195))),0,SUM(DP185:DP195)) -> 0
EE5: CALCULATE BASE REBATE | EF5: =IF(TRIM(EF1)<>"",IF((EF1)<2500,0,IF(AND((EF1)>=2500,(EF1)<10000),0.02,IF(AND((EF1)>=10000,(EF1)<15000),0.03,IF(AND((EF1)>=15000,(EF1)<25000),0.04,IF(AND((EF1)>=25000,(EF1)<29000),IF(TRIM(AP79)<>"",IF((AV79)>=1,0.08,0.05),0.05),IF(AND((EF1)>=29000,(EF1)<40000),0.08,IF((EF1)>=40000,0.09,""))))))),"") ->  | EJ5: Bayer Season PAK Note
EE8: CALCULATE OCTOBER BONUS | EF8: =IF(OR((ES3)=TRUE,(EQ3)=TRUE),IF(TRIM(AV79)<>"","",IF(EF1>=29000,"",IF(TRIM(EF1)<>"",0.01,""))),"") -> 
EE10: CALCULATE PAK REBATE | EF10: =IF(TRIM(AW90)<>"",IF(AND((TRIM(AP79)<>""),(AV79)>=1),"",IF(EF1>=29000,"",0.01)),"") -> 
C13: =CONCATENATE("Bayer Season PAK",IF(EL75=2," - NOT AVAIL.",CONCATENATE(" - $",FIXED(AR79,2,FALSE)))) -> Bayer Season PAK - $29,000.00 | AE13: =CONCATENATE("Warm Season Herbicide PAK",IF(OR(EL75=1,EL75=4)," - NOT AVAIL.",CONCATENATE(" - $",FIXED(AR84,2,FALSE)))) -> Warm Season Herbicide PAK - $5,300.00 | EF13: =IF(SUM(EF5:EF10)>=0,SUM(EF5:EF10),"") -> 0
C15: =IF(EL75=2,"THIS PAK IS NOT AVAILABLE FOR CALIFORNIA CUSTOMERS.",EJ1) -> The Bayer Season PAK is back, offering you the performance of complete insect and disease control you need to manage your golf course. Bayer Season PAK customers automatically receive a minimum 8% rebate on all purchases during the program (Includes October bonus). | AE15: =IF(EL75=1,"THIS PAK IS NOT AVAILABLE FOR WASHINGTON CUSTOMERS.",IF(EL75=4,"THIS PAK IS NOT AVAILABLE FOR NEW YORK CUSTOMERS.","Provides a great combination of pre- and postemergent herbicide options to control a broad spectrum of difficult to control weeds.")) -> Provides a great combination of pre- and postemergent herbicide options to control a broad spectrum of difficult to control weeds.
C18: PRODUCTS | K18: UNITS/ PAK | L18: UNIT SIZE | P18: GAL/LB /OZ | R18: USE RATE | X18: ACRES TREATED | AE18: PRODUCTS | AN18: UNITS/ PAK | AQ18: UNIT SIZE | AU18: GAL/LB /OZ | AW18: USE RATE | BA18: ACRES TREATED | EE18: TOTAL PROGRAM REBATE % | EF18: =IF(TRIM(EF1)<>"",IF(EN133>=2500,IF(TRIM(EF13)<>"",EF13,""),""),"") -> 
C19: Banol® | K19: 2 | L19: 2 x 1.0 gal/case | P19: 4 | R19: 2 | T19: oz/1,000 | X19: =IF(TRIM(R19)<>"",(P19*128)/(R19*43.56),"") -> 5.876951331 | AE19: Specticle FLO | AN19: 1 | AQ19: 2 X 1.0 gal/case | AU19: 2 | AW19: 6.5 | AY19: oz./acre | BA19: =IF(TRIM(AW19)<>"",(AU19*128)/AW19,"") -> 39.38461538 | EE19: TOTAL PROGRAM REBATE | EF19: =IF(TRIM(EF1)="","",IF((EF1)<2500,0,IF(OR(TRIM(EF1)="",TRIM(EF18)=""),"",(EF1)*(EF18)))) -> 
C20: Bayleton® FLO | K20: 1 | L20: 2 x 2.5 gal/case | P20: 5 | R20: 0.5 | T20: oz/1,000 | X20: =IF(TRIM(R20)<>"",(P20*128)/(R20*43.56),"") -> 29.38475666 | AE20: Tribute® Total | AN20: 1 | AQ20: 6 x 6.0 oz/case | AU20: 36 | AW20: 3 | AY20: oz./acre | BA20: =IF(TRIM(AW20)<>"",(AU20)/AW20,"") -> 12 | EC20: Calculate Select Rebate | EF20: =IF(EN133>=2500,IF(TRIM(AW129)<>"",AW129,""),"") -> 
C21: =CONCATENATE(IF(EL75=2,"Chipco® Signature™","Signature™ XTRA Stressgard®")) -> Signature™ XTRA Stressgard® | K21: 14 | L21: 4 x 5.5 lbs/case | P21: 308 | R21: 4 | T21: oz/1,000 | X21: =IF(TRIM(R21)<>"",(P21*16)/(R21*43.56),"") -> 28.28282828 | AE21: Specticle G | AN21: 4 | AQ21: 50 lb/bag | AU21: 200 | AW21: 200 | AY21: lb /acre | BA21: 1
C22: Interface® Stressgard | K22: 9 | L22: 2 x 2.5 gal/case | P22: 45 | R22: 4 | T22: oz/1,000 | X22: =IF(TRIM(R22)<>"",(P22*128)/(R22*43.56),"") -> 33.05785124
C23: Merit 75® WSP | K23: 1 | L23: 110 X 1.6 oz/drum | P23: 11 | R23: 6.4 | T23: oz/acre | X23: =IF(TRIM(R23)<>"",(P23*16)/(R23),"") -> 27.5
X24: =IF(TRIM(R24)<>"",(P24*16)/(R24*43.56),"") -> 
C25: Tartan® Stressgard | K25: 6 | L25: 2 X 2.5 gal/case | P25: 30 | R25: 1.5 | T25: oz/1,000 | X25: =IF(TRIM(R25)<>"",(P25*128)/(R25*43.56),"") -> 58.76951331 | AE25: =CONCATENATE("Bayer Stressgard® PAK",IF(EL75=2," - NOT AVAIL.",CONCATENATE(" - $",FIXED(AR85,2,FALSE)))) -> Bayer Stressgard® PAK - $4,950.00 | EE25: Grand Total | EF25: =IF(AND(TRIM(EF19)="",TRIM(EF20)=""),"",SUM(EF19,EF20)) -> 
AE27: =IF(EL75=2,"THIS PAK IS NOT AVAILABLE FOR CALIFORNIA CUSTOMERS.","With Stressgard Formulation Technology, this PAK program enhances overall turf quality, improves plant health and protects against harsh environmental stress that can damage your turf.") -> With Stressgard Formulation Technology, this PAK program enhances overall turf quality, improves plant health and protects against harsh environmental stress that can damage your turf.
C28: =CONCATENATE("Bayer Essentials PAK",IF(OR(EL75=2,EL75=4)," - NOT AVAIL.",CONCATENATE(" - $",FIXED(AR80,2,FALSE)))) -> Bayer Essentials PAK - $17,500.00 | EC28: 0 | ED28: 2500 | EE28: =IF(AND($EN$133>EC28,$EN$133<ED28),((ED28)-($EN$133)),"") -> 
AE29: PRODUCTS | AN29: UNITS/ PAK | AQ29: UNIT SIZE | AU29: GAL/LB /OZ | AW29: USE RATE | BA29: ACRES TREATED | EC29: 2500 | ED29: 10000 | EE29: =IF(AND($EN$133>=EC29,$EN$133<ED29),((ED29)-($EN$133)),"") -> 
C30: =IF(OR(EL75=2,EL75=4),IF(EL75=4,"THIS PAK IS NOT AVAILABLE FOR NEW YORK CUSTOMERS.","THIS PAK IS NOT AVAILABLE FOR CALIFORNIA CUSTOMERS."),"The Bayer Essentials PAK is built on key products you know, and trust, with the flexibility you demand.") -> The Bayer Essentials PAK is built on key products you know, and trust, with the flexibility you demand. | EC30: 10000 | ED30: 15000 | EE30: =IF(AND($EN$133>=EC30,$EN$133<ED30),((ED30)-($EN$133)),"") -> 
AE31: =IF(FB97=2,"Chipco Signature","Signature XTRA Stressgard") -> Signature XTRA Stressgard | AN31: 4 | AQ31: 4 x 5.5 lbs/case | AU31: 88 | AW31: 4 | AY31: oz/1,000 | BA31: =IF(TRIM(AW31)<>"",(AU31*16)/(AW31*43.56),"") -> 8.080808081 | EC31: 15000 | ED31: 25000 | EE31: =IF(AND($EN$133>=EC31,$EN$133<ED31),((ED31)-($EN$133)),"") -> 
C32: PRODUCTS | K32: UNITS/ PAK | L32: UNIT SIZE | P32: GAL/LB /OZ | R32: USE RATE | X32: ACRES TREATED | AE32: Interface Stressgard | AN32: 1 | AQ32: 2 x 2.5 gal/case | AU32: 5 | AW32: 4 | AY32: oz/1,000 | BA32: =IF(TRIM(AW32)<>"",(AU32*128)/(AW32*43.56),"") -> 3.673094582 | EC32: 25000 | ED32: 29000 | EE32: =IF(AND($EN$133>=EC32,$EN$133<ED32),((ED32)-($EN$133)),"") -> 
AE33: Tartan Stressgard | AN33: 1 | AQ33: 2 X 2.5 gal/case | AU33: 5 | AW33: 2 | AY33: oz/1,000 | BA33: =IF(TRIM(AW33)<>"",(AU33*128)/(AW33*43.56),"") -> 7.346189164 | EC33: 29000 | ED33: 40000 | EE33: =IF(AND($EN$133>=EC33,$EN$133<ED33),((ED33)-($EN$133)),"") -> 
C34: Bayleton FLO | K34: 1 | L34: 2 x 2.5 gal/case | P34: 5 | R34: 0.5 | T34: oz/1,000 | X34: =IF(TRIM(R34)<>"",(P34*128)/(R34*43.56),"") -> 29.38475666
C36: =IF(EL75=2,"Chipco Signature","Signature XTRA Stressgard") -> Signature XTRA Stressgard | K36: 8 | L36: 4 x 5.5 lbs/case | P36: 176 | R36: 4 | T36: oz/1,000 | X36: =IF(TRIM(R36)<>"",(P36*16)/(R36*43.56),"") -> 16.16161616 | EE36: =SUM(EE28:EE33) -> 0 | EF36: =IF(EN133>=2500,IF(EF5>=0.08,0.09,IF(EF5>=0.05,0.08,(EF18)+0.01)),"") ->  | EG36: =TEXT(EF36,"0%") -> 
C37: Exteris® Stressgard | K37: 8 | L37: 2 x 2.5 gal/case | P37: 40 | R37: 4 | T37: oz/1,000 | X37: =IF(TRIM(R37)<>"",(P37*128)/(R37*43.56),"") -> 29.38475666 | AE37: =CONCATENATE("Bayer Fairy Ring PAK",IF(EL75=4," - NOT AVAIL.",CONCATENATE(" - $",FIXED(AR86,2,FALSE)))) -> Bayer Fairy Ring PAK - $4,650.00 | EC37: =IF(TRIM(EF3<>""),IF(AND(EF3>2499,EF3<29000),CONCATENATE("You are only ",TEXT(EE36,"$#,##0")," from moving up to Rebate Level ",TEXT(EF36,"0%"),"."),IF(AND(EF3>28999,EF3<40000),CONCATENATE("You are only ",TEXT(EE36,"$#,##0")," from a ",TEXT(EF36,"0%")," rebate effective thru Sept 30, 2018."),IF(AND(EF3>0,EF3<2500),CONCATENATE("You are only ",TEXT(EE36,"$#,##0")," from qualifying for the program. "),IF(EF3>=40000,"Congratulations! You have reached the 9% Rebate - effective thru Sept 30, 2018.","")))),"") -> 
C38: Merit 75 WSP | K38: 1 | L38: 110 X 1.6 oz/drum | P38: 11 | R38: 6.4 | T38: oz/acre | X38: =IF(TRIM(R38)<>"",(P38*16)/(R38),"") -> 27.5 | EC38: =IF(AND(EE36>0,EE36<40000),"You are only ","") ->  | ED38: =IF(AND(EE36>0,EE36<40000),TEXT(EE36,"$#,##0"),"") ->  | EE38: =IF(AND(EE36>0,EE36<40000)," from moving up to Rebate Level ","") ->  | EH38: =IF(AND(EE36>0,EE36<40000),TEXT(EG36,"0%"),"") -> 
C39: Tartan Stressgard | K39: 3 | L39: 2 X 2.5 gal/case | P39: 15 | R39: 1.5 | T39: oz/1,000 | X39: =IF(TRIM(R39)<>"",(P39*128)/(R39*43.56),"") -> 29.38475666 | AE39: =IF(EL75=4,"THIS PAK IS NOT AVAILABLE FOR NEW YORK CUSTOMERS.","Preventative and curative fairy ring management tools.") -> Preventative and curative fairy ring management tools.
AE40: PRODUCTS | AN40: UNITS/ PAK | AQ40: UNIT SIZE | AU40: GAL/LB /OZ | AW40: USE RATE | BA40: ACRES TREATED | EN40: Calc SR min with PAK components
EN41: Single Unit | EO41: PAK Unit | EP41: Total
C42: =CONCATENATE("Bayer Fairway PAK",IF(OR(EL75=2,EL75=4)," - NOT AVAIL.",CONCATENATE(" - $",FIXED(AR81,2,FALSE)))) -> Bayer Fairway PAK - $12,300.00 | AE42: Tartan Stressgard | AN42: 1 | AQ42: 2 X 2.5 gal/case | AU42: 5 | AW42: 2 | AY42: oz/1,000 | BA42: =IF(TRIM(AW42)<>"",(AU42*128)/(AW42*43.56),"") -> 7.346189164 | EN42: =N93*5 -> 0 | EO42: =(AP79*4)+(AP87*6)+(AP82*4) -> 0 | EP42: =SUM(EN42:EO42) -> 0 | EQ42: Banol
AE43: Prostar 70 WG | AN43: 4 | AQ43: 4 x 3.0 lb/case | AU43: 48 | AW43: 2.2 | AY43: oz/1,000 | BA43: =IF(TRIM(AW43)<>"",(AU43*16)/(AW43*43.56),"") -> 8.014024543 | EK43: Checking for 1/6 increments
C44: =IF(OR(EL75=2,EL75=4),IF(EL75=4,"THIS PAK IS NOT AVAILABLE FOR NEW YORK CUSTOMERS.","THIS PAK IS NOT AVAILABLE FOR CALIFORNIA CUSTOMERS."),"Pairs well with Fiata® Stressgard utilizing select product rebate.") -> Pairs well with Fiata® Stressgard utilizing select product rebate. | EL44: 0.17 | EM44: =IF(TRIM($N$111)<>"",IF($N$111-(INT($N$111))=EL44,1,""),"") ->  | EN44: =N94*5 -> 0 | EO44: =(AP79*5)+(AP80*5)+(AP81*5) -> 0 | EP44: =SUM(EN44:EO44) -> 0 | EQ44: Bayleton FLO
C45: PRODUCTS | K45: UNITS/ PAK | L45: UNIT SIZE | P45: GAL/LB /OZ | R45: USE RATE | X45: ACRES TREATED | EL45: 0.33
AE46: =CONCATENATE("Bayer Pythium PAK",IF(EL75=2," - NOT AVAIL.",CONCATENATE(" - $",FIXED(AR87,2,FALSE)))) -> Bayer Pythium PAK - $4,450.00 | EK46: =IF(TRIM(EM50)>0,IF((EM50)=1,TRUE,""),"") ->  | EL46: 0.5
C47: Mirage® Stressgard | K47: 2 | L47: 2 x 2.5 gal/case | P47: 10 | R47: 1 | T47: oz/1,000 | X47: =IF(TRIM(R47)<>"",(P47*128)/(R47*43.56),"") -> 29.38475666 | EL47: 0.67
C48: Interface Stressgard | K48: 6 | L48: 2 x 2.5 gal/case | P48: 30 | R48: 3 | T48: oz/1,000 | X48: =IF(TRIM(R48)<>"",(P48*128)/(R48*43.56),"") -> 29.38475666 | AE48: =IF(EL75=2,"THIS PAK IS NOT AVAILABLE FOR CALIFORNIA CUSTOMERS.","Preventative and curative pythium management tools.") -> Preventative and curative pythium management tools. | EL48: 0.83 | EN48: =N98*5 -> 0 | EO48: =(AP79*45)+(AP81*30)+(AP85*5)+(AP89*15)+(AP82*10)+(AP88*10)+(DP185*10)+(DP187*15) -> 0 | EP48: =SUM(EN48:EO48) -> 0 | EQ48: Interface Stressgard
C49: Bayleton FLO | K49: 1 | L49: 2 x 2.5 gal/case | P49: 5 | R49: 0.5 | T49: oz/1,000 | X49: =IF(TRIM(R49)<>"",(P49*128)/(R49*43.56),"") -> 29.38475666 | AE49: PRODUCTS | AN49: UNITS/ PAK | AQ49: UNIT SIZE | AU49: GAL/LB /OZ | AW49: USE RATE | BA49: ACRES TREATED | EL49: 0 | EN49: =N99 -> 0 | EO49: =(AP79*1)+(AP80*1) -> 0 | EP49: =SUM(EN49:EO49) -> 0 | EQ49: Merit 75 WSP Mega Mini
C50: Exteris® Stressgard | K50: 8 | L50: 2 x 2.5 gal/case | P50: 40 | R50: 4 | T50: oz/1,000 | X50: =IF(TRIM(R50)<>"",(P50*128)/(R50*43.56),"") -> 29.38475666 | EM50: =SUM(EM44:EM49) -> 0 | EN50: =(N100*5)+(DP194*5) -> 0 | EO50: =(AP81*10)+(AP82*5)+(AP89*5)+(DP187*5) -> 0 | EP50: =SUM(EN50:EO50) -> 0 | EQ50: Mirage Stressgard
AE51: =IF(EL75=2,"Chipco Signature","Signature XTRA Stressgard") -> Signature XTRA Stressgard | AN51: 4 | AQ51: 4 x 5.5 lbs/case | AU51: 88 | AW51: 4 | AY51: oz/1,000 | BA51: =IF(TRIM(AW51)<>"",(AU51*16)/(AW51*43.56),"") -> 8.080808081 | EL51: 0.17 | EM51: =IF(TRIM($N$188)<>"",IF($N$188-(INT($N$188))=EL51,1,""),"") -> 
AE52: Banol | AN52: 3 | AQ52: 2 x 1.0 gal/case | AU52: 6 | AW52: 2 | AY52: oz/1,000 | BA52: =IF(TRIM(AW52)<>"",(AU52*128)/(AW52*43.56),"") -> 8.815426997 | EL52: 0.33
C53: =CONCATENATE("Core Program PAK",IF(OR(EL75=2,EL75=4)," - NOT AVAIL.",CONCATENATE(" - $",FIXED(AR82,2,FALSE)))) -> Core Program PAK - $10,500.00 | BA53: =IF(TRIM(AW53)<>"",(AU53*16)/(AW53*43.56),"") ->  | EK53: =IF(TRIM(EM57)>0,IF((EM57)=1,TRUE,""),"") ->  | EL53: 0.5 | EN53: =(N103*5)+(DP193*5) -> 0 | EO53: =(AP79*30)+(AP80*15)+(AP82*5)+(AP86*5)+(AP85*5) -> 0 | EP53: =SUM(EN53:EO53) -> 0 | EQ53: Tartan Stressgard
EL54: 0.67
C55: =IF(EL75=2,"THIS PAK IS NOT AVAILABLE FOR CALIFORNIA CUSTOMERS.",IF(EL75=4,"THIS PAK IS NOT AVAILABLE FOR NEW YORK CUSTOMERS.","Success starts with our industry-leading solutions. Use these core program components to achieve perfect turf.")) -> Success starts with our industry-leading solutions. Use these core program components to achieve perfect turf. | EL55: 0.83
AE56: =CONCATENATE("Bayer Leaf Spot PAK",IF(EL75=2," - NOT AVAIL.",CONCATENATE(" - $",FIXED(AR88,2,FALSE)))) -> Bayer Leaf Spot PAK - $3,650.00 | EL56: 0
C57: PRODUCTS | K57: UNITS/ PAK | L57: UNIT SIZE | P57: GAL/LB /OZ | R57: USE RATE | X57: ACRES TREATED | EM57: =SUM(EM51:EM56) -> 0
AE58: =IF(EL75=2,"THIS PAK IS NOT AVAILABLE FOR CALIFORNIA CUSTOMERS.","Industry-leading solutions for effective leaf spot control.") -> Industry-leading solutions for effective leaf spot control. | EL58: 0.17 | EM58: =IF(TRIM($N$124)<>"",IF($N$124-(INT($N$124))=EL58,1,""),"") ->  | EN58: =N108*1 -> 0 | EO58: =(AP84*4)+(DP186*4) -> 0 | EP58: =SUM(EN58:EO58) -> 0 | EQ58: Specticle G
C59: =IF(EL75=2,"Chipco Signature","Signature XTRA Stressgard") -> Signature XTRA Stressgard | K59: 4 | L59: 4 x 5.5 lbs/case | P59: 88 | R59: 4 | T59: oz/1,000 | X59: =IF(TRIM(R59)<>"",(P59*16)/(R59*43.56),"") -> 8.080808081 | AE59: PRODUCTS | AN59: UNITS/ PAK | AQ59: UNIT SIZE | AU59: GAL/LB /OZ | AW59: USE RATE | BA59: ACRES TREATED | EL59: 0.33
C60: Interface Stressgard | K60: 2 | L60: 2 x 2.5 gal/case | P60: 10 | R60: 4 | T60: oz/1,000 | X60: =IF(TRIM(R60)<>"",(P60*128)/(R60*43.56),"") -> 7.346189164 | EK60: =IF(TRIM(EM64)>0,IF((EM64)=1,TRUE,""),"") ->  | EL60: 0.5
C61: Prostar® 70 WG | K61: 4 | L61: 4 x 3.0 lb/case | P61: 48 | R61: 2.2 | T61: oz/1,000 | X61: =IF(TRIM(R61)<>"",(P61*16)/(R61*43.56),"") -> 8.014024543 | AE61: Interface Stressgard | AN61: 2 | AQ61: 2 x 2.5 gal/case | AU61: 10 | AW61: 4 | AY61: oz/1,000 | BA61: =IF(TRIM(AW61)<>"",(AU61*128)/(AW61*43.56),"") -> 7.346189164 | EL61: 0.67 | EN61: =(N106*22) -> 0 | EO61: =(AP79*308)+(AP80*176)+(AP82*88)+(AP83*176)+(AP85*88)+(AP87*88)+(AP88*88)+(DP185*88) -> 0 | EP61: =SUM(EN61:EO61) -> 0 | EQ61: Signature Xtra
C62: Banol | K62: 2 | L62: 2 x 1.0 gal/case | P62: 4 | R62: 2 | T62: oz/1,000 | X62: =IF(TRIM(R62)<>"",(P62*128)/(R62*43.56),"") -> 5.876951331 | AE62: =IF(FB75=2,"Chipco Signature","Signature XTRA Stressgard") -> Signature XTRA Stressgard | AN62: 4 | AQ62: 4 x 5.5 lbs/case | AU62: 88 | AW62: 4 | AY62: oz/1,000 | BA62: =IF(TRIM(AW62)<>"",(AU62*16)/(AW62*43.56),"") -> 8.080808081 | EL62: 0.83 | EN62: =IF(AND(TRIM(N122)<>"",TRIM(Q122)<>""),(N122*22)+(N107*44),(N107*44)) -> 0 | EP62: =SUM(EN62:EO62) -> 0 | EQ62: Chipco Signature
C63: Tartan Stressgard | K63: 1 | L63: 2 x 2.5 gal/case | P63: 5 | R63: 2 | T63: oz/1,000 | X63: =IF(TRIM(R63)<>"",(P63*128)/(R63*43.56),"") -> 7.346189164 | EL63: 0
C64: Mirage Stressgard | K64: 1 | L64: 2 x 2.5 gal/case | P64: 5 | R64: 1 | T64: oz/1,000 | X64: =IF(TRIM(R64)<>"",(P64*128)/(R64*43.56),"") -> 14.69237833 | EM64: =SUM(EM58:EM63) -> 0 | EN64: =N117*5 -> 0 | EO64: =AP83*25 -> 0 | EP64: =SUM(EN64:EO64) -> 0 | EQ64: 26GT
AE65: =CONCATENATE("Bayer Utility PAK - $",FIXED(AR89,2,FALSE)) -> Bayer Utility PAK - $2,475.00
EN66: =N118*10 -> 0 | EO66: =N119*4 -> 0 | EP66: =SUM(EN66:EO66) -> 0 | EQ66: Compass
AE67: Versatile uses including proven solution for your snow mold problems as well as Dollar Spot, Brown Patch, Anthracnose, and other diseases while enhancing turf quality. | EN67: =N119*4 -> 0 | EO67: =N118*10 -> 0 | EP67: 0 | EQ67: Compass
C68: =CONCATENATE("Bayer Greens PAK",IF(EL75=2," - NOT AVAIL.",CONCATENATE(" - $",FIXED(AR83,2,FALSE)))) -> Bayer Greens PAK - $6,450.00 | EN68: =N120*12 -> 0 | EO68: =(AP82*48)+(AP86*48) -> 0 | EP68: =SUM(EN68:EO68) -> 0 | EQ68: ProStar 70 WG
AE69: PRODUCTS | AN69: UNITS/ PAK | AQ69: UNIT SIZE | AU69: GAL/LB /OZ | AW69: USE RATE | BA69: ACRES TREATED
C70: =IF(EL75=2,"THIS PAK IS NOT AVAILABLE FOR CALIFORNIA CUSTOMERS.","The standard for your greens management program, anchored by the products that provide superior turf quality.") -> The standard for your greens management program, anchored by the products that provide superior turf quality.
C71: PRODUCTS | K71: UNITS/ PAK | L71: UNIT SIZE | P71: GAL/LB /OZ | R71: USE RATE | X71: ACRES TREATED | AE71: Interface Stressgard | AN71: 3 | AQ71: 2 x 2.5 gal/case | AU71: 15 | AW71: 4 | AY71: oz/1,000 | BA71: =IF(TRIM(AW71)<>"",(AU71*128)/(AW71*43.56),"") -> 11.01928375
AE72: Mirage Stressgard | AN72: 1 | AQ72: 2 x 2.5 gal/case | AU72: 5 | AW72: 1 | AY72: oz/1,000 | BA72: =IF(TRIM(AW72)<>"",(AU72*128)/(AW72*43.56),"") -> 14.69237833
C73: =IF(EL75=2,"Chipco Signature","Signature XTRA Stressgard") -> Signature XTRA Stressgard | K73: 8 | L73: 4 x 5.5 lbs/case | P73: 176 | R73: 4 | T73: oz/1,000 | X73: =IF(TRIM(R73)<>"",(P73*16)/(R73*43.56),"") -> 16.16161616
C74: 26GT® | K74: 5 | L74: 2 x 2.5 gal/case | P74: 25 | R74: 4 | T74: oz/1,000 | X74: =IF(TRIM(R74)<>"",(P74*128)/(R74*43.56),"") -> 18.36547291 | EL74: WA/CA/NY/(N/A)
EL75: 3
EJ77: 5150 | EK77: Regular | EL77: California | EM77: Washington | EN77: Total Purch
AC78: PRODUCTS | AP78: # PAKS | AR78: PRICE/PAK | AV78: TOTAL $ | EJ78: 4500 | EK78: 29000 | EM78: =EK78+(EK78*0.007) -> 29203 | EN78: =IF(EL75=2,"",IF(TRIM(AV79)<>"",AP79*EK78,"")) -> 
AC79: =IF(EL75=2,"","Bayer Season PAK") -> Bayer Season PAK | AR79: =IF(EL75=2,"",IF($EL$75=1,EM78,IF($EL$75=2,EL78,EK78))) -> 29000 | AV79: =IF(EL75=2,"",IF(TRIM(AP79)<>"",AP79*AR79,"")) ->  | EJ79: 4350 | EK79: 17500 | EM79: 17622.5 | EN79: =IF(OR(EL75=2,EL75=4),"",IF(TRIM(AV80)<>"",AP80*EK79,"")) -> 
AC80: =IF(EL75=2,"","Bayer Essentials PAK") -> Bayer Essentials PAK | AR80: =IF(EL75=2,"",IF($EL$75=1,EM79,IF($EL$75=2,EL79,EK79))) -> 17500 | AV80: =IF(OR(EL75=2,EL75=4),"",IF(TRIM(AP80)<>"",AP80*AR80,"")) ->  | EJ80: 3550 | EK80: 12300 | EM80: 12386.1 | EN80: =IF(OR(EL75=2,EL75=4),"",IF(TRIM(AV81)<>"",AP81*EK80,"")) -> 
AC81: =IF(EL75=2,"","Bayer Fairway PAK") -> Bayer Fairway PAK | AR81: =IF(EL75=2,"",IF($EL$75=1,EM80,IF($EL$75=2,EL80,EK80))) -> 12300 | AV81: =IF(OR(EL75=2,EL75=4),"",IF(TRIM(AP81)<>"",AP81*AR81,"")) ->  | EK81: 10500 | EM81: 10573.5 | EN81: =IF(OR(EL75=2,EL75=4),"",IF(TRIM(AP82)<>"",AP82*EK81,"")) -> 
AC82: =IF(OR(EL75=2,EL75=4),"","Core Program PAK") -> Core Program PAK | AR82: =IF(OR(EL75=2,EL75=4),"",IF($EL$75=1,EM81,IF($EL$75=2,EL81,EK81))) -> 10500 | AV82: =IF(OR(EL75=2,EL75=4),"",IF(TRIM(AP82)<>"",AP82*AR82,"")) ->  | EK82: 6450 | EM82: 6495.15 | EN82: =IF(EL75=2,"",IF(TRIM(AP83)<>"",AP83*EK82,"")) -> 
AC83: =IF(EL75=2,"","Bayer Greens PAK") -> Bayer Greens PAK | AR83: =IF($EL$75=1,EM82,IF($EL$75=2,EL82,EK82)) -> 6450 | AV83: =IF(EL75=2,"",IF(TRIM(AP83)<>"",AP83*AR83,"")) ->  | EK83: 5300 | EL83: =EK83+(EK83*0.02175) -> 5415.275 | EM83: 5337.1 | EN83: =IF(OR(EL75=1,EL75=4),"",IF(AND(TRIM(AP84)<>"",DP186<>""),DP186*EK83+AP84*EK83,IF(TRIM(AP84)<>"",AP84*EK83,IF(TRIM(DP186)<>"",DP186*EK83,"")))) -> 
AC84: =IF(OR(EL75=1,EL75=4),"","Warm Season Herbicide PAK") -> Warm Season Herbicide PAK | AR84: =IF($EL$75=1,EM83,IF($EL$75=2,EL83,EK83)) -> 5300 | AV84: =IF(OR(EL75=1,EL75=4),"",IF(AND(TRIM(AP84)<>"",DP186<>""),DP186*AR84+AP84*AR84,IF(TRIM(AP84)<>"",AP84*AR84,IF(TRIM(DP186)<>"",DP186*AR84,"")))) ->  | AZ84: NS Included | EK84: 4950 | EM84: 4984.65 | EN84: =IF(EL75=2,"",IF(TRIM(AP85)<>"",AP85*EK84,"")) -> 
AC85: =IF(EL75=2,"","Bayer Stressgard PAK") -> Bayer Stressgard PAK | AR85: =IF($EL$75=1,EM84,IF($EL$75=2,EL84,EK84)) -> 4950 | AV85: =IF(EL75=2,"",IF(TRIM(AP85)<>"",AP85*AR85,"")) ->  | EK85: 4650 | EL85: 4751.1375 | EM85: 4682.55 | EN85: =IF(EL75=4,"",IF(TRIM(AP86)<>"",AP86*EK85,"")) -> 
AC86: =IF(EL75=4,"","Bayer Fairy Ring PAK") -> Bayer Fairy Ring PAK | AR86: =IF(EL75=4,"",IF($EL$75=1,EM85,IF($EL$75=2,EL85,EK85))) -> 4650 | AV86: =IF(EL75=4,"",IF(TRIM(AP86)<>"",AP86*AR86,"")) ->  | EK86: 4450 | EM86: 4481.15 | EN86: =IF(EL75=2,"",IF(TRIM(AP87)<>"",AP87*EK86,"")) -> 
AC87: =IF(EL75=2,"","Bayer Pythium PAK") -> Bayer Pythium PAK | AR87: =IF($EL$75=1,EM86,IF($EL$75=2,EL86,EK86)) -> 4450 | AV87: =IF(EL75=2,"",IF(TRIM(AP87)<>"",AP87*AR87,"")) ->  | EK87: 3650 | EM87: 3675.55 | EN87: =IF(EL75=2,"",IF(AND(TRIM(AP88)<>"",DP185<>""),DP185*EK87+AP88*EK87,IF(TRIM(AP88)<>"",AP88*EK87,IF(TRIM(DP185)<>"",DP185*EK87,"")))) -> 
AC88: =IF(EL75=2,"","Bayer Leaf Spot PAK") -> Bayer Leaf Spot PAK | AR88: =IF($EL$75=1,EM87,IF($EL$75=2,EL87,EK87)) -> 3650 | AV88: =IF(EL75=2,"",IF(AND(TRIM(AP88)<>"",DP185<>""),DP185*AR88+AP88*AR88,IF(TRIM(AP88)<>"",AP88*AR88,IF(TRIM(DP185)<>"",DP185*AR88,"")))) ->  | AZ88: NS Included | EK88: 2475 | EL88: =EK88+(EK88*0.02175) -> 2528.83125 | EM88: 2492.325 | EN88: =IF(AND(TRIM(AP89)<>"",DP187<>""),DP187*EK88+AP89*EK88,IF(TRIM(AP89)<>"",AP89*EK88,IF(TRIM(DP187)<>"",DP187*EK88,""))) -> 
AC89: Bayer Utility PAK | AR89: =IF($EL$75=1,EM88,IF($EL$75=2,EL88,EK88)) -> 2475 | AV89: =IF(AND(TRIM(AP89)<>"",DP187<>""),DP187*AR89+AP89*AR89,IF(TRIM(AP89)<>"",AP89*AR89,IF(TRIM(DP187)<>"",DP187*AR89,""))) ->  | AZ89: NS Included | EN89: =SUM(EN78:EN88) -> 0
AV90: (A) | AW90: =IF(SUM(AV79:AY89)>0,SUM(AV79:AY89),"") -> 
EK91: Regular | EL91: California | EM91: Washington | EN91: Total Purch
D92: AGENCY PRODUCTS* | K92: UNIT SIZE | N92: # UNITS | Q92: PRICE/UNIT | U92: USE RATE / 1,000 ft2 | Y92: USE RATE / ACRE | AD92: ACRES TREATED / UNIT | AI92: TOTAL $ | AP92: SELECT REBATE/ MINIMUM QTYǂ | AV92: SELECT REBATE $ | EK92: 1912.5 | EL92: =EK92 + (EK92*0.02175) -> 1954.096875 | EM92: =EK92 + (EK92*0.007) -> 1925.8875 | EN92: =IF(TRIM(N93)<>"",N93*EK92,"") -> 
D93: Banol | K93: 2 X 2.5 gal/case | Q93: =IF($EL$75=1,EM92,IF($EL$75=2,EL92,EK92)) -> 1912.5 | U93: 2 | Y93: =IF(TRIM(U93)<>"",U93*43.56,"") -> 87.12 | AD93: =IF(TRIM(Y93)<>"",IF(TRIM(N93)<>"",(N93*(5*128))/Y93,(5*128)/Y93),"") -> 7.346189164 | AI93: =IF(TRIM(N93)<>"",N93*Q93,"") ->  | AP93: $60/gal – 10 gal | AV93: =IF(TRIM(N93)<>"",IF(VALUE(EP42)>=10,((N93)/0.2)*60,""),"") ->  | EK93: 2700 | EL93: =EK93 + (EK93*0.02175) -> 2758.725 | EM93: =EK93 + (EK93*0.007) -> 2718.9 | EN93: =IF(TRIM(N94)<>"",N94*EK93,"") -> 
D94: Bayleton FLO | K94: 2 X 2.5 gal/case | Q94: =IF($EL$75=1,EM93,IF($EL$75=2,EL93,EK93)) -> 2700 | U94: 0.5 | Y94: =IF(TRIM(U94)<>"",U94*43.56,"") -> 21.78 | AD94: =IF(EL75=2,"",IF(TRIM(Y94)<>"",IF(TRIM(N94)<>"",(N94*(5*128))/Y94,(5*128)/Y94),"")) -> 29.38475666 | AI94: =IF(TRIM(N94)<>"",N94*Q94,"") ->  | AP94: =IF(EL75=2,"","$70/gal – 10 gal") -> $70/gal – 10 gal | AV94: =IF(TRIM(N94)<>"",IF(VALUE(EP44)>=10,((N94)/0.2)*70,""),"") ->  | EK94: 784.96 | EL94: 802.03288 | EM94: 790.45472 | EN94: =IF(OR(EL75=1,EL75=4),"",IF(TRIM(N95)<>"",N95*EK94,"")) -> 
D95: =IF(OR(EL75=1,EL75=4),"","Celsius® WG") -> Celsius® WG | K95: =IF(OR(EL75=1,EL75=4),"","8 X 10 oz/case") -> 8 X 10 oz/case | Q95: =IF(OR(EL75=1,EL75=4),"",IF($EL$75=1,EM94,IF($EL$75=2,EL94,EK94))) -> 784.96 | U95: 0.085 | Y95: =IF(OR(EL75=1,EL75=4),"",IF(TRIM(U95)<>"",U95*43.56,"")) -> 3.7026 | AD95: =IF(OR(EL75=1,EL75=4),"",IF(TRIM(Y95)<>"",IF(TRIM(N95)<>"",(N95*(8*10))/Y95,(8*10)/Y95),"")) -> 21.60643872 | AI95: =IF(OR(EL75=1,EL75=4),"",IF(TRIM(N95)<>"",N95*Q95,"")) ->  | AP95: =IF(OR(EL75=1,EL75=4),""," $15/case – 2 case") -> $15/case – 2 case | AV95: =IF(OR(EL75=1,EL75=4),"",IF(TRIM(N95)<>"",IF(VALUE(N95)>=2,((N95)/0.125)*1.875,""),"")) ->  | EK95: 220 | EL95: 224.785 | EM95: 221.54 | EN95: =IF(OR(EL75=1,EL75=2,EL75=4),"",IF(TRIM(N96)<>"",N96*EK95,"")) -> 
D96: =IF(OR(EL75=1,EL75=2,EL75=4),"","Chipco Choice") -> Chipco Choice | K96: =IF(OR(EL75=1,EL75=2,EL75=4),"","1Yr Agreement/acre") -> 1Yr Agreement/acre | Q96: =IF(OR(EL75=1,EL75=2,EL75=4),"",EK95) -> 220 | AI96: =IF(OR(EL75=1,EL75=2,EL75=4),"",IF(TRIM(N96)<>"",N96*Q96,"")) ->  | AP96: =IF(OR(EL75=1,EL75=2,EL75=4),"","$10/acre – 45 acre") -> $10/acre – 45 acre | AV96: =IF(OR(EL75=1,EL75=2,EL75=4),"",IF(TRIM(N96)<>"",IF(VALUE(N96)>=45,(N96)*10,""),"")) ->  | EK96: 255 | EL96: 260.54625 | EM96: 256.785 | EN96: =IF(TRIM(N97)<>"",N97*EK96,"") -> 
D97: Fiata®Stressgard | K97: 2 X 2.5 gal/case | Q97: =IF($EL$75=1,EM96,IF($EL$75=2,EL96,EK96)) -> 255 | U97: 5 | Y97: =IF(TRIM(U97)<>"",U97*43.56,"") -> 217.8 | AD97: =IF(TRIM(Y97)<>"",IF(TRIM(N97)<>"",(N97*(5*128))/Y97,(5*128)/Y97),"") -> 2.938475666 | AI97: =IF(TRIM(N97)<>"",N97*Q97,"") ->  | AP97: $10/gal – 100 gal | AV97: =IF(TRIM(N97)<>"",IF(VALUE(N97)>=20,((N97)/0.2)*10,""),"") ->  | EK97: 772.5 | EL97: 789.301875 | EM97: 777.9075 | EN97: =IF(TRIM(N98)<>"",N98*EK97,"") -> 
D98: Interface Stressgard | K98: 2 X 2.5 gal/case | Q98: 772.5 | U98: 4 | Y98: 174.24 | AD98: =IF(TRIM(Y98)<>"",IF(TRIM(N98)<>"",(N98*(5*128))/Y98,(5*128)/Y98),"") -> 3.673094582 | AP98: $15/gal – 40 gal | AV98: =IF(TRIM(N98)<>"",IF(VALUE(EP48)>=40,((N98)/0.2)*15,""),"") ->  | EK98: 1250 | EL98: 1277.1875 | EM98: 1258.75 | EN98: =IF(TRIM(N99)<>"",N99*EK98,"") -> 
D99: Merit 75 WSP Mega Mini | K99: 110 X 1.6 oz/drum | Q99: 1250 | U99: 0.197 | Y99: 8.58132 | AD99: =IF(TRIM(Y99)<>"",IF(TRIM(N99)<>"",(N99*(110*1.6))/Y99,(110*1.6)/Y99),"") -> 20.50966518 | AP99: $200/drum – 2 drum | AV99: =IF(TRIM(N99)<>"",IF(VALUE(EP49)>=2,(N99)*200,""),"") ->  | EK99: 892.5 | EL99: 911.911875 | EM99: 898.7475 | EN99: =IF(AND(DP194<>"",TRIM(N100)<>""),(DP194+N100)*EK99,IF(TRIM(N100)<>"",N100*EK99,IF(TRIM(DP194)<>"",DP194*EK99,""))) -> 
D100: Mirage Stressgard | K100: 2 X 2.5 gal/case | Q100: 892.5 | U100: 1 | Y100: 43.56 | AD100: =IF(TRIM(Y100)<>"",IF(TRIM(N100)<>"",(N100*(5*128))/Y100,(5*128)/Y100),"") -> 14.69237833 | AI100: =IF(AND(TRIM(N100)<>"",DP194<>""),DP194*Q100+N100*Q100,IF(TRIM(N100)<>"",N100*Q100,IF(TRIM(DP194)<>"",DP194*Q100,""))) ->  | AP100: $15/gal – 20 gal | AV100: =IF(OR(TRIM(N100)<>"",TRIM(DP194)<>""),IF(VALUE(EP50)>=20,(EN50)*15,""),"") ->  | AZ100: NS Included
EK101: 825 | EL101: =EK101 + (EK101*0.02175) -> 842.94375 | EM101: =EK101 + (EK101*0.007) -> 830.775 | EN101: =IF(OR(EL75=1,EL75=4),"",IF(TRIM(N102)<>"",N102*EK101,"")) -> 
D102: =IF(OR(EL75=1,EL75=4),"","Ronstar® FLO") -> Ronstar® FLO | K102: =IF(OR(EL75=1,EL75=4),""," 2 X 2.5 gal/case") -> 2 X 2.5 gal/case | Q102: =IF($EL$75=1,EM101,IF($EL$75=2,EL101,EK101)) -> 825 | U102: 2 | Y102: =IF(OR(EL75=1,EL75=4),"",IF(TRIM(U102)<>"",U102*43.56,"")) -> 87.12 | AD102: =IF(OR(EL75=1,EL75=4),"",IF(TRIM(Y102)<>"",IF(TRIM(N102)<>"",(N102*(5*128))/Y102,(5*128)/Y102),"")) -> 7.346189164 | AI102: =IF(OR(EL75=1,EL75=4),"",IF(TRIM(N102)<>"",N102*Q102,"")) ->  | AP102: =IF(OR(EL75=1,EL75=4),"","$25/gal – 30 gal") -> $25/gal – 30 gal | AV102: =IF(OR(EL75=1,EL75=4),"",IF(TRIM(N102)<>"",IF(VALUE(N102)>=6,((N102)/0.2)*25,""),"")) ->  | EK102: 1980 | EL102: 2023.065 | EM102: 1993.86 | EN102: =IF(AND(DP193<>"",TRIM(N103)<>""),(DP193+N103)*EK102,IF(TRIM(N103)<>"",N103*EK102,IF(TRIM(DP193)<>"",DP193*EK102,""))) -> 
D103: Tartan Stressgard | K103: 2 X 2.5 gal/case | Q103: =IF($EL$75=1,EM102,IF($EL$75=2,EL102,EK102)) -> 1980 | U103: 2 | Y103: 87.12 | AD103: =IF(TRIM(Y103)<>"",IF(TRIM(N103)<>"",(N103*(5*128))/Y103,(5*128)/Y103),"") -> 7.346189164 | AI103: =IF(AND(TRIM(N103)<>"",DP193<>""),DP193*Q103+N103*Q103,IF(TRIM(N103)<>"",N103*Q103,IF(TRIM(DP193)<>"",DP193*Q103,""))) ->  | AP103: $50/gal – 20 gal | AV103: =IF(OR(TRIM(N103)<>"",TRIM(DP193)<>""),IF(VALUE(EP53)>=20,(EN53)*50,""),"") ->  | AZ103: NS Included | EK103: 125 | EL103: 127.5 | EM103: 0 | EN103: =IF(OR(EL75=1,EL75=4),"",IF(TRIM(N104)<>"",N104*EK103,"")) -> 
D104: =IF(OR(EL75=1,EL75=4),"","TopChoice® (20+ bags)") -> TopChoice® (20+ bags) | J104: =IF(EL75<>2,"","***") ->  | K104: =IF(OR(EL75=1,EL75=4),"","50 lb/bag") -> 50 lb/bag | Q104: =IF(OR(EL75=1,EL75=4),"",IF($EL$75=1,EM103,IF($EL$75=2,EL103,EK103))) -> 125 | U104: 2 | Y104: =IF(OR(EL75=1,EL75=4),"",IF(TRIM(U104)<>"",U104*43.56,"")) -> 87.12 | AD104: =IF(OR(EL75=1,EL75=4),"",IF(TRIM(Y104)<>"",IF(TRIM(N104)<>"",(N104*(50))/Y104,(50)/Y104),"")) -> 0.5739210285 | AI104: =IF(OR(EL75=1,EL75=4),"",IF(EL75=1,"",IF(TRIM(N104)<>"",N104*Q104,""))) ->  | AP104: =IF(OR(EL75=1,EL75=4),"","$20/bag – 20 bag") -> $20/bag – 20 bag | AV104: =IF(OR(EL75=1,EL75=4),"",IF(TRIM(N104)<>"",IF(VALUE(N104)>=20,(N104)*20,""),"")) ->  | EK104: 137.5 | EL104: 140.5 | EM104: 0 | EN104: =IF(OR(EL75=1,EL75=4),"",IF(TRIM(N105)<>"",N105*EK104,"")) -> 
D105: =IF(OR(EL75=1,EL75=4),"","TopChoice® (1-19 bags)") -> TopChoice® (1-19 bags) | J105: =IF(EL75<>2,"","***") ->  | K105: =IF(OR(EL75=1,EL75=4),"","50 lb/bag") -> 50 lb/bag | Q105: =IF(OR(EL75=1,EL75=4),"",IF($EL$75=1,EM104,IF($EL$75=2,EL104,EK104))) -> 137.5 | U105: 2 | Y105: =IF(OR(EL75=1,EL75=4),"",IF(TRIM(U105)<>"",U105*43.56,"")) -> 87.12 | AD105: =IF(OR(EL75=1,EL75=4),"",IF(TRIM(Y105)<>"",IF(TRIM(N105)<>"",(N105*50)/Y105,50/Y105),"")) -> 0.5739210285 | AI105: =IF(OR(EL75=1,EL75=4),"",IF(TRIM(N105)<>"",N105*Q105,"")) ->  | AP105: =IF(OR(EL75=1,EL75=4),"","$10/bag") -> $10/bag | AV105: =IF(OR(EL75=1,EL75=4),"",IF(TRIM(N105)<>"",(N105)*10,"")) ->  | EK105: 625 | EL105: =EK105 + (EK105*0.02175) -> 638.59375 | EM105: =EK105 + (EK105*0.007) -> 629.375 | EN105: =IF(TRIM(AI106)<>"",N106*EK105,"") -> 
D106: =IF(EL75=2,"","Signature XTRA Stressgard") -> Signature XTRA Stressgard | K106: =IF(EL75=2,"","4 X 5.5 lbs/case") -> 4 X 5.5 lbs/case | Q106: =IF($EL$75=1,EM105,IF($EL$75=2,"",EK105)) -> 625 | U106: 4 | Y106: =IF(EL75=2,"",IF(TRIM(U106)<>"",U106*43.56,"")) -> 174.24 | AD106: =IF(EL75=2,"",IF(TRIM(Y106)<>"",IF(TRIM(N106)<>"",(N106*(22*16))/Y106,(22*16)/Y106),"")) -> 2.02020202 | AI106: =IF(EL75=2,"",IF(TRIM(N106)<>"",N106*Q106,"")) ->  | AP106: $10/bottle – 88 lb | AV106: =IF((VALUE(EP61))>=88,IF(TRIM(N106)<>"",((VALUE(N106))*4)*10,""),"") ->  | EK106: 1133.25 | EL106: 1157.898187 | EM106: 1141.18275 | EN106: =IF(TRIM(N107)<>"",N107*EK106,"") -> 
D107: =IF(EL75=2,"Chipco Signature",CONCATENATE("Chipco Signature","™")) -> Chipco Signature™ | K107: 8 X 5.5 lbs/case | Q107: =IF($EL$75=1,EM106,IF($EL$75=2,EL106,EK106)) -> 1133.25 | U107: 4 | Y107: =IF(TRIM(U107)<>"",U107*43.56,"") -> 174.24 | AD107: =IF(TRIM(Y107)<>"",IF(TRIM(N107)<>"",(N107*(44*16))/Y107,(44*16)/Y107),"") -> 4.04040404 | AI107: =IF(TRIM(N107)<>"",N107*Q107,"") ->  | AP107: $10/bottle – 88 lb | AV107: =IF((VALUE(EP62))>=88,IF(TRIM(N107)<>"",((VALUE(N107))*8)*10,""),"") ->  | EK107: 93 | EL107: 95.02275 | EM107: 93.651 | EN107: =IF(TRIM(N108)<>"",N108*EK107,"") -> 
D108: Specticle G | K108: 50 lb/bag | Q108: =IF($EL$75=1,EM107,IF($EL$75=2,EL107,EK107)) -> 93 | U108: 4.591368 | Y108: 199.9999901 | AD108: =IF(TRIM(Y108)<>"",IF(TRIM(N108)<>"",(N108*(50))/Y108,(50)/Y108),"") -> 0.2500000124 | AP108: $5/bag – 40 bag | AV108: =IF(TRIM(N108)<>"",IF(VALUE(EP58)>=40,(N108)*5,""),"") ->  | EK108: 550 | EL108: 561.9625 | EM108: 553.85 | EN108: =IF(EL75=2,"",IF(EL75=4,IF(TRIM(N109)<>"",N109*EK108,""),IF(AND(DP192<>"",TRIM(N109)<>""),(DP192+N109)*EK108,IF(TRIM(N109)<>"",N109*EK108,IF(TRIM(DP192)<>"",DP192*EK108,""))))) -> 
D109: =IF(EL75=2,"","Exteris Stressgard") -> Exteris Stressgard | I109: =IF(EL75=4,"₦","") ->  | K109: =IF(EL75=2,"","2 X 2.5 gal/case") -> 2 X 2.5 gal/case | Q109: =IF($EL$75=1,EM108,IF($EL$75=2,EL108,EK108)) -> 550 | U109: 4 | Y109: =IF(EL75=2,"",IF(TRIM(U109)<>"",U109*43.56,"")) -> 174.24 | AD109: =IF(EL75=2,"",IF(TRIM(Y109)<>"",IF(TRIM(N109)<>"",(N109*(5*128))/Y109,(5*128)/Y109),"")) -> 3.673094582 | AI109: =IF(EL75=2,"",IF(EL75=4,IF(TRIM(N109)<>"",N109*Q109,""),IF(AND(TRIM(N109)<>"",DP192<>""),DP192*Q109+N109*Q109,IF(TRIM(N109)<>"",N109*Q109,IF(TRIM(DP192)<>"",DP192*Q109,""))))) ->  | AZ109: NS Included | EK109: 2284.8 | EL109: 2334.4944 | EM109: 2300.7936 | EN109: =IF(TRIM(N110)<>"",N110*EK109,"") -> 
D110: =IF(OR(EL75=1,EL75=4),"","Revolver®") -> Revolver® | K110: =IF(OR(EL75=1,EL75=4),"","4 X 87 oz/case") -> 4 X 87 oz/case | Q110: =IF(OR(EL75=1,EL75=4),"",IF($EL$75=1,EM109,IF($EL$75=2,EL109,EK109))) -> 2284.8 | U110: 0.4 | Y110: =IF(OR(EL75=1,EL75=4),"",IF(TRIM(U110)<>"",U110*43.56,"")) -> 17.424 | AD110: =IF(OR(EL75=1,EL75=4),"",IF(TRIM(Y110)<>"",IF(TRIM(N110)<>"",(N110*(4*87))/Y110,(4*87)/Y110),"")) -> 19.97245179 | AI110: =IF(OR(EL75=1,EL75=4),"",IF(TRIM(N110)<>"",N110*Q110,"")) ->  | EK110: 2937.6 | EL110: 3001.4928 | EM110: 2958.1632 | EN110: =IF(AND(DP189<>"",TRIM(N111)<>""),(DP189+N111)*EK110,IF(TRIM(N111)<>"",N111*EK110,IF(TRIM(DP189)<>"",DP189*EK110,""))) -> 
D111: Specticle FLO (14+ gal) | K111: 2 X 1.0 gal/case | Q111: =IF($EL$75=1,EM110,IF($EL$75=2,EL110,EK110)) -> 2937.6 | U111: 0.1492 | Y111: =IF(TRIM(U111)<>"",U111*43.56,"") -> 6.499152 | AD111: =IF(TRIM(Y111)<>"",IF(TRIM(N111)<>"",(N111*(2*128))/Y111,(2*128)/Y111),"") -> 39.38975423 | AI111: =IF(AND(DP189<>"",TRIM(N111)<>""),(DP189+N111)*Q111,IF(TRIM(N111)<>"",N111*Q111,IF(TRIM(DP189)<>"",DP189*Q111,""))) ->  | AZ111: NS Included | EK111: 3213 | EL111: 3282.88275 | EM111: 3235.491 | EN111: =IF(AND(DP190<>"",TRIM(N112)<>""),(DP190+N112)*EK111,IF(TRIM(N112)<>"",N112*EK111,IF(TRIM(DP190)<>"",DP190*EK111,""))) -> 
D112: Specticle FLO (1-13 gal) | K112: 2 X 1.0 gal/case | Q112: =IF($EL$75=1,EM111,IF($EL$75=2,EL111,EK111)) -> 3213 | U112: 0.1492 | Y112: 6.499152 | AD112: =IF(TRIM(Y112)<>"",IF(TRIM(N112)<>"",(N112*(2*128))/Y112,(2*128)/Y112),"") -> 39.38975423 | AI112: =IF(AND(DP190<>"",TRIM(N112)<>""),(DP190+N112)*Q112,IF(TRIM(N112)<>"",N112*Q112,IF(TRIM(DP190)<>"",DP190*Q112,""))) ->  | AZ112: NS Included | EK112: 1888.64 | EL112: 1929.71792 | EM112: 1901.86048 | EN112: =IF(TRIM(N113)<>"",N113*EK112,"") -> 
D113: Specticle FLO | K113: 8 X 18 oz/case | Q113: =IF($EL$75=1,EM112,IF($EL$75=2,EL112,EK112)) -> 1888.64 | U113: 0.1492 | Y113: 6.499152 | AD113: =IF(TRIM(Y113)<>"",IF(TRIM(N113)<>"",(N113*(8*18))/Y113,(8*18)/Y113),"") -> 22.15673676 | AI113: =IF(TRIM(N113)<>"",N113*Q113,"") ->  | EK113: 339.07 | EL113: 346.4447725 | EM113: 341.44349 | EN113: =IF(OR(EL75=1,EL75=4),"",IF(TRIM(N114)<>"",N114*EK113,"")) -> 
D114: =IF(OR(EL75=1,EL75=4),"","Tribute Total") -> Tribute Total | K114: =IF(OR(EL75=1,EL75=4),"","6 oz/bottle") -> 6 oz/bottle | Q114: =IF(OR(EL75=1,EL75=4),"",IF($EL$75=1,EM113,IF($EL$75=2,EL113,EK113))) -> 339.07 | U114: 0.07 | Y114: =IF(OR(EL75=1,EL75=4),"",IF(TRIM(U114)<>"",U114*43.56,"")) -> 3.0492 | AD114: =IF(OR(EL75=1,EL75=4),"",IF(TRIM(Y114)<>"",IF(TRIM(N114)<>"",(N114*6)/Y114,6/Y114),"")) -> 1.96772924 | AI114: =IF(OR(EL75=1,EL75=4),"",IF(TRIM(N114)<>"",N114*Q114,"")) ->  | EK114: 1650 | EL114: 1685.8875 | EM114: 1661.55 | EN114: =IF(OR(EL75=2,EL75=4),"",IF(AND(DP191<>"",TRIM(N115)<>""),(DP191+N115)*EK114,IF(TRIM(N115)<>"",N115*EK114,IF(TRIM(DP191)<>"",DP191*EK114,"")))) -> 
D115: =IF(OR(EL75=4,EL75=2),"","Indemnify®") -> Indemnify® | K115: =IF(OR(EL75=4,EL75=2),"","17.1 oz/bottle") -> 17.1 oz/bottle | Q115: =IF(OR(EL75=4,EL75=2),"",IF($EL$75=1,EM114,IF($EL$75=2,EL114,EK114))) -> 1650 | U115: 0.39 | Y115: =IF(OR(EL75=4,EL75=2),"",IF(TRIM(U115)<>"",U115*43.56,"")) -> 16.9884 | AD115: =IF(OR(EL75=4,EL75=2),"",IF(TRIM(Y115)<>"",IF(TRIM(N115)<>"",(N115*17.1)/Y115,17.1/Y115),"")) -> 1.006569188 | AI115: =IF(OR(EL75=4,EL75=2),"",IF(AND(TRIM(N115)<>"",DP191<>""),DP191*Q115+N115*Q115,IF(TRIM(N115)<>"",N115*Q115,IF(TRIM(DP191)<>"",DP191*Q115,"")))) ->  | AZ115: NS Included | EN115: =IF(TRIM(N117)<>"",N117*Q117,"") -> 
D116: NON-AGENCY PRODUCTS
D117: 26GT | K117: 2 X 2.5 gal/case | U117: 4 | Y117: =IF(TRIM(U117)<>"",U117*43.56,"") -> 174.24 | AD117: =IF(TRIM(Y117)<>"",IF(TRIM(N117)<>"",(N117*(5*128))/Y117,(5*128)/Y117),"") -> 3.673094582 | AI117: =IF(AND(TRIM(N117)<>"",TRIM(Q117)<>""),N117*Q117,"") ->  | AP117: $20/gal – 40 gal | AV117: =IF(AND(TRIM(N117)<>"",TRIM(Q117)<>""),IF(VALUE(EP64)>=40,((N117)/0.2)*20,""),"") -> 
D118: Compass® | K118: 20 X 8 oz/drum | U118: 0.25 | Y118: =IF(TRIM(U118)<>"",U118*43.56,"") -> 10.89 | AD118: =IF(TRIM(Y118)<>"",IF(TRIM(N118)<>"",(N118*(20*8))/Y118,(20*8)/Y118),"") -> 14.69237833 | AI118: =IF(AND(TRIM(N118)<>"",TRIM(Q118)<>""),N118*Q118,"") ->  | AP118: $50lb – 8 lb | AV118: =IF(AND(TRIM(N118)<>"",TRIM(Q118)<>""),IF((VALUE(EP66))>=8,(((VALUE(N118))*10))*50,""),"") ->  | EN118: =IF(TRIM(N120)<>"",N120*Q120,"") -> 
D119: Compass | K119: 4 X 1.0 lb/case | U119: 0.25 | Y119: 10.89 | AD119: =IF(TRIM(Y119)<>"",IF(TRIM(N119)<>"",(N119*(64))/Y119,(64)/Y119),"") -> 5.876951331 | AP119: $50lb – 8 lb | AV119: =IF(AND(TRIM(N119)<>"",TRIM(Q119)<>""),IF((VALUE(EP67))>=8,(((VALUE(N119))*4))*50,""),"") ->  | EN119: =IF(EL75=2,"",IF(TRIM(N121)<>"",N121*Q121,"")) -> 
D120: ProStar 70 WG | I120: =IF(EL75=4,"₦","") ->  | K120: 4 X 3 lb/case | U120: 2.2 | Y120: =IF(TRIM(U120)<>"",U120*43.56,"") -> 95.832 | AD120: =IF(TRIM(Y120)<>"",IF(TRIM(N120)<>"",(N120*192)/Y120,192/Y120),"") -> 2.003506136 | AI120: =IF(AND(TRIM(N120)<>"",TRIM(Q120)<>""),N120*Q120,"") ->  | AP120: $3 lb – 24 lb | AV120: =IF(AND(TRIM(N120)<>"",TRIM(Q120)<>""),IF((VALUE(EP68))>=24,((VALUE(N120))*12)*3,""),"") -> 
D121: =IF(EL75=2,"","Acclaim® Extra") -> Acclaim® Extra | K121: =IF(EL75=2,"","4 X 1.0 gal/case") -> 4 X 1.0 gal/case | U121: 0.5 | Y121: =IF(EL75=2,"",IF(TRIM(U121)<>"",U121*43.56,"")) -> 21.78 | AD121: =IF(EL75=2,"",IF(TRIM(Y121)<>"",IF(TRIM(N121)<>"",(N121*(4*128))/Y121,(4*128)/Y121),"")) -> 23.50780533 | AI121: =IF(EL75=2,"",IF(AND(TRIM(N121)<>"",TRIM(Q121)<>""),N121*Q121,"")) ->  | AP121: =IF(EL75=2,"","$90/gal") -> $90/gal | AV121: =IF(EL75=2,"",IF(AND(TRIM(N121)<>"",TRIM(Q121)<>""),IF(VALUE(N121)>=0.25,((N121)/0.25)*90,""),"")) -> 
D122: Chipco Signature | K122: 4 X 5.5 lbs/case | U122: 4 | Y122: 174.24 | AD122: =IF(TRIM(Y122)<>"",IF(TRIM(N122)<>"",(N122*(22*16))/Y122,(22*16)/Y122),"") -> 2.02020202 | AP122: $10/bottle – 88 lb | AV122: =IF(AND(TRIM(N122)<>"",TRIM(Q122)<>""),IF((VALUE(EP62))>=88,((VALUE(N122))*4)*10,""),"") -> 
D123: =IF(EL75=2,"","Dylox® 420 SL") -> Dylox® 420 SL | K123: =IF(EL75=2,"","2 X 2.5 gal/case") -> 2 X 2.5 gal/case | U123: 6.9 | Y123: 300.564 | AD123: =IF(TRIM(Y123)<>"",IF(TRIM(N123)<>"",(N123*(5*128))/Y123,(5*128)/Y123),"") -> 2.129330193 | AI123: =IF(EL75=2,"",IF(AND(TRIM(N123)<>"",TRIM(Q123)<>""),N123*Q123,"")) -> 
D124: =IF(EL75=4,"","Forbid®") -> Forbid® | K124: =IF(EL75=4,"","6 X 8 oz/case") -> 6 X 8 oz/case | AI124: =IF(EL75=4,"",IF(AND(TRIM(N124)<>"",TRIM(Q124)<>""),N124*Q124,"")) -> 
D125: Proxy® | K125: 2 X 2.5 gal/case | U125: 5 | Y125: =IF(TRIM(U125)<>"",U125*43.56,"") -> 217.8 | AD125: =IF(TRIM(Y125)<>"",IF(TRIM(N125)<>"",(N125*(5*128))/Y125,(5*128)/Y125),"") -> 2.938475666 | AI125: =IF(AND(TRIM(N125)<>"",TRIM(Q125)<>""),N125*Q125,"") -> 
D126: =IF(OR(EL75=1,EL75=4),"","Revolver") -> Revolver | K126: =IF(OR(EL75=1,EL75=4),"","4 X 32 oz/case") -> 4 X 32 oz/case | U126: 0.4 | Y126: =IF(OR(EL75=1,EL75=4),"",IF(TRIM(U126)<>"",U126*43.56,"")) -> 17.424 | AD126: =IF(OR(EL75=1,EL75=4),"",IF(TRIM(Y126)<>"",IF(TRIM(N126)<>"",(N126*128)/Y126,128/Y126),"")) -> 7.346189164 | AI126: =IF(OR(EL75=1,EL75=4),"",IF(AND(TRIM(N126)<>"",TRIM(Q126)<>""),N126*Q126,"")) -> 
D127: Prograss® | K127: 2 X 2.5 gal/case | U127: 1.5 | Y127: =IF(TRIM(U127)<>"",U127*43.56,"") -> 65.34 | AD127: =IF(TRIM(Y127)<>"",IF(TRIM(N127)<>"",(N127*(5*128))/Y127,(5*128)/Y127),"") -> 9.794918886
D128: Specticle Total | K128: 4 x 144 oz/case | U128: 16 | Y128: =IF(TRIM(U128)<>"",U128*43.56,"") -> 696.96 | AD128: =IF(TRIM(Y128)<>"",IF(TRIM(N128)<>"",(N128*(4.5*128))/Y128,(4.5*128)/Y128),"") -> 0.826446281 | AI128: =IF(AND(TRIM(N128)<>"",TRIM(Q128)<>""),N128*Q128,"") ->  | EM128: PAK$ | EN128: =IF(TRIM(EN89)<>"",EN89,"") -> 0
AI129: (B) | AK129: =IF(SUM(AI117:AN128,AI93:AN115)>0,SUM(AI117:AN128,AI93:AN115),"") ->  | AV129: (D) | AW129: =IF(SUM(AV93:AY108,AV117:AY122)>0,SUM(AV93:AY108,AV117:AY122),"") -> 
EN133: =SUM(EN92:EN129) -> 0
AB134: NOW Solutions Participants | AQ134: =IF(EQ3=TRUE,"Your NOW Solutions Purchases are now INCLUDED in this calculation.","(Enter NOW Solutions Purchase Quantities. )") -> (Enter NOW Solutions Purchase Quantities. )
D135: =EC37 -> 
D136: CALCULATE YOUR REBATE | AQ136: =IF(EL75=4,"₦","") ->  | AR136: =IF(EL75=4,"Not for sale, sale into, distribution and/or use in Nassau and Suffolk counties of New York State.","") -> 
D137: PURCHASE TOTAL+ | I137: BASE BONUS | L137: OCTOBER BONUS** | N137: BAYER PAK BONUS++ | R137: ..(C) TOTAL PROGRAM REBATE+++
D139: $2,500 < $10,000 | I139: 0.02 | L139: 0.01 | N139: 0.01 | R139: 0.04 | AB139: October Bonus | AK139: Included in NOW Solutions
D140: $10,000 < $15,000 | I140: 0.03 | L140: 0.01 | N140: 0.01 | R140: 0.05
D141: $15,000 < $25,000 | I141: 0.04 | L141: 0.01 | N141: 0.01 | R141: 0.06
D142: $25,000 < $29,000 | I142: 0.05 | L142: 0.01 | N142: 0.01 | R142: 0.07
D143: $29,000 < $40,000 | I143: Total program rebate for all purchases Oct 1 - Dec 8, 2017 | R143: 0.08
D144: $40,000+ | R144: 0.09
AL146: SELECT REBATE (D) (IF APPLICABLE)
H147: TOTAL $ (A + B) | O147: TOTAL PROGRAM REBATE_(C) | Z147: TOTAL PROGRAM REBATE | AT147: GRAND TOTAL REBATE $
H148: =IF(EU3=2,"",EF1) ->  | N148: x | P148: =IF(EF18<>"",EF18,"") ->  | X148: = | Z148: =IF(EU3=2,"",IF(EF19>0,EF19,"")) ->  | AI148: + | AL148: =IF(EU3=2,"",EF20) ->  | AS148: = | AT148: =IF(TRIM(EF25)="","",IF(EF25>0,EF25,"")) -> 
AT149: X 100 = MyBayerRewards POINTS
O150: GRAND TOTAL REBATE EARNED
P151: =IF(EN133>=2500,IF(TRIM(AT148)<>"",IF(AT148>0,(AT148)/(EF3),""),""),"") ->  | AT151: =IF((EU3)<>2,"",IF((EF25)="","",(EF25)*100)) -> 
B153: I would like to receive (choose one): | L153: MyBayerRewards Points | T153: or | X153: Distributor Credit | AI153: MyBayerRewards Member ID
D155: Verify your rebate selection and update your profile at My Bayer Rewards by 1st March, 2018 myrewards.cropscience.bayer.com
N159: Customer Fall Solutions and NOW promotional cumulative purchases (August 1 - December 8, 2017) must be $2,500 or more to qualify for select product rebates and Total Program Rebates. Participants must be members of MyBayerRewards. New members signed up before March 1, 2018 will receive 2017 Fall Solutions rebates. All rebates for 2017 Bayer Fall Solutions will be paid based on participant's My Bayer Rewards profile choice as of March 1, 2018 . If no selection is made, the default for Fall Solutions rebate will be Loyalty Points. Purchases qualifying for rebates will be the net of reward or credits. All products must be invoiced between October 1 and December 8, 2017 to qualify. Rebate calculations will be based on the date of actual product invoice and calculator tools are provided for estimation purposes only. Rebates will only be paid or delivered to the company or name listed on the invoice. No checks can be issued to a third party. Please allow for rebates to be fulfilled by August 31, 2018. Only end-user purchases qualify for this program, and purchases must be from a Bayer authorized Distributor or Agent. Resale of product(s) purchased within this program will not qualify for Distributor Credits or My Bayer Rewards points. If questions arise, please contact My Bayer Rewards at 1-888-456-6464 or e-mail mybayerrewards@aimia.com. Bayer reserves the right to modify any portion thereof, or discontinue this program without prior notice. Bayer CropScience LP, Environmental Science Division, 2 T.W. Alexander Drive, Research Triangle Park, NC 27709. 1-800-331-2867. www.BackedbyBayer.com. Bayer (reg'd), the Bayer Cross (reg'd), 26GT®, Acclaim®, Banol®, Bayleton®,Celsius® Chipco®, Compass®, Dylox®, Exteris®, Fiata®, Forbid®,Indemnify®, Interface®, Merit®, Mirage®, Nortica®, Prostar®, Proxy®, Ronstar®, Signature™ Specticle®, Signature™ Stressgard®, Tartan®, Tribute® and Topchoice® are trademarks of Bayer. Please verify state registration of these products in your state before selling, using or distributing. Not all products and rates are registered in all states. ALWAYS READ AND FOLLOW LABEL INSTRUCTIONS. ©2017 Bayer CropScience LP. 14BPG-059-FS1
D167: Contact Name | X167: Golf Course Number
DO183: (Enter the total quantities purchased via NOW Solutions)
DQ185: Bayer Leaf Spot PAK
DQ186: Warm Season Herbicide Pak
DQ187: Bayer Utility Pak
DQ189: Specticle FLO (14+ gal) | DR189: 2 X 1.0 gal/case
DQ190: Specticle FLO (1-13 gal) | DR190: 2 X 1.0 gal/case
DQ191: Indemnify® | DR191: 17.1 oz/bottle
DQ192: Exteris® Stressgard® | DR192: 2 X 2.5 gal/case | DS192: =IF(EL75=4,"₦","") ->  | DT192: =IF(EL75=4,"Not for sale, sale into,","") -> 
DQ193: Tartan® Stressgard | DR193: 2 X 2.5 gal/case | DT193: =IF(EL75=4,"distribution and/or use in Nassau and Suffolk counties of New York State.","") -> 
DQ194: Mirage® Stressgard | DR194: 2 X 2.5 gal/case

Sheet Sheet1
